bitfinex-derivatives/quotes_BTCF0:USTF0_20250309
["timestamp","ask_amount","ask_price","bid_price","bid_amount"]
[1741519584501,0.44276,84859.0,84857.0,0.063]
[1741519584698,0.1231,84858.0,84857.0,0.063]
[1741519585104,0.49501321,84858.0,84850.0,0.0001178]
[1741519585313,0.3608,84851.0,84850.0,0.0001178]
[1741519585608,0.44276,84851.0,84850.0,0.0001178]
[1741519586509,0.43976,84851.0,84850.0,0.0001178]
[1741519588606,0.43976,84851.0,84850.0,0.0041178]
[1741519588804,0.44276,84851.0,84850.0,0.0041178]
[1741519589604,0.44276,84851.0,84850.0,0.0021178]
[1741519593011,0.44276,84851.0,84850.0,0.0011178]
[1741519593709,0.44276,84851.0,84850.0,0.1313178]
[1741519598907,0.44276,84851.0,84850.0,0.1303178]
[1741519600117,0.54751261,84851.0,84850.0,0.06717188]
[1741519600418,0.54751261,84851.0,84840.0,0.0623]
[1741519600611,0.1287,84850.0,84840.0,0.0623]
[1741519601321,0.0624,84850.0,84840.0,0.0623]
[1741519602221,0.3608,84847.0,84840.0,0.0623]
[1741519602419,0.08196,84846.0,84840.0,0.0623]
[1741519602615,0.08196,84846.0,84840.0,0.0653]
[1741519603423,0.08196,84846.0,84841.0,0.0665]
[1741519603923,0.08196,84846.0,84842.0,0.0652]
[1741519604424,0.08196,84846.0,84843.0,0.0665]
[1741519604922,0.08196,84846.0,84844.0,0.0652]
[1741519605417,0.10475261,84848.0,84845.0,0.0665]
[1741519605724,0.08196,84847.0,84845.0,0.0665]
[1741519605922,0.08196,84847.0,84846.0,0.0652]
[1741519609824,0.08687211,84847.0,84846.0,0.0652]
[1741519611318,0.08196,84847.0,84846.0,0.0652]
[1741519614332,0.44276,84847.0,84846.0,0.0652]
[1741519614917,0.08196,84847.0,84846.0,0.0652]
[1741519615729,0.1392917,84847.0,84846.0,0.0652]
[1741519616132,0.20958325,84847.0,84846.0,0.0652]
[1741519617025,0.27288325,84847.0,84846.0,0.0652]
[1741519617731,0.27388325,84847.0,84846.0,0.0652]
[1741519620032,0.63468325,84847.0,84846.0,0.0652]
[1741519620625,0.63368325,84847.0,84846.0,0.0652]
[1741519620820,0.63468325,84847.0,84846.0,0.0652]
[1741519623528,0.57735155,84847.0,84846.0,0.0652]
[1741519624233,0.57242,84847.0,84846.0,0.0652]
[1741519625529,0.21162,84847.0,84846.0,0.0652]
[1741519626034,0.001,84847.0,84846.0,0.0652]
[1741519626230,0.08292,84847.0,84846.0,0.0652]
[1741519626940,0.001,84847.0,84846.0,0.0652]
[1741519628538,0.25713135,84848.0,84846.0,0.0652]
[1741519628735,0.001,84847.0,84846.0,0.0652]
[1741519630639,0.001,84847.0,84846.0,0.2152]
[1741519630936,0.17521135,84848.0,84846.0,0.426]
[1741519632634,0.10511373,84855.0,84846.0,0.426]
[1741519634835,0.10511373,84855.0,84853.0,0.3608]
[1741519635041,0.10511373,84855.0,84854.0,0.1281]
[1741519635242,0.10511373,84855.0,84854.0,0.20998]
[1741519635443,0.07915757,84865.0,84854.0,0.20998]
[1741519635738,0.08188,84881.0,84864.0,0.3608]
[1741519635945,0.08188,84881.0,84865.0,0.20918]
[1741519636339,0.14002303,84868.0,84865.0,0.20918]
[1741519636847,0.14002303,84868.0,84865.0,0.22153327]
[1741519637344,0.03652303,84868.0,84865.0,0.37153327]
[1741519637551,1e-08,84868.0,84865.0,0.37153327]
[1741519638242,0.07411321,84874.0,84866.0,0.2168]
[1741519638446,0.21013412,84881.0,84873.0,0.3608]
[1741519638747,0.21013412,84881.0,84880.0,0.3608]
[1741519638948,0.21013412,84881.0,84880.0,0.44268]
[1741519639149,0.21013412,84881.0,84880.0,0.59268]
[1741519641041,0.21013412,84881.0,84880.0,0.44268]
[1741519641235,0.005,84881.0,84880.0,0.44268]
[1741519643440,0.005,84881.0,84880.0,0.36958828]
[1741519643641,0.08184,84884.0,84880.0,0.36958828]
[1741519643841,0.1292,84883.0,84881.0,0.0675]
[1741519644740,0.1292,84883.0,84881.0,0.1309]
[1741519645247,0.1292,84883.0,84881.0,0.0675]
[1741519645947,0.1292,84883.0,84880.0,0.3668]
[1741519647247,0.1292,84883.0,84880.0,0.3608]
[1741519647451,0.1292,84883.0,84881.0,0.005]
[1741519647943,0.1292,84883.0,84882.0,0.0609]
[1741519648142,0.1292,84883.0,84880.0,0.3658]
[1741519650549,0.14153147,84883.0,84881.0,0.005]
[1741519651348,0.14153147,84883.0,84880.0,0.3648]
[1741519651549,0.14153147,84883.0,84881.0,0.3608]
[1741519651749,0.1292,84883.0,84880.0,0.004]
[1741519652245,0.1292,84883.0,84874.0,0.00017679]
[1741519652554,0.1292,84883.0,84881.0,0.003]
[1741519654143,0.1292,84883.0,84880.0,0.003]
[1741519655049,0.1292,84883.0,84881.0,0.002]
[1741519656447,0.0818,84882.0,84881.0,0.002]
[1741519656652,0.0818,84882.0,84881.0,0.0695]
[1741519656852,0.216,84882.0,84881.0,0.0695]
[1741519657045,0.216,84882.0,84881.0,0.0675]
[1741519657243,0.216,84882.0,84878.0,0.3608]
[1741519657244,0.0672,84882.0,84880.0,0.003]
[1741519657657,0.0672,84882.0,84881.0,0.0613]
[1741519658344,0.0672,84882.0,84881.0,0.0633]
[1741519658855,0.0672,84882.0,84881.0,0.01390516]
[1741519659158,0.0672,84882.0,84881.0,0.002]
[1741519665956,0.149,84882.0,84881.0,0.002]
[1741519669054,0.149,84882.0,84881.0,0.001]
[1741519675767,0.149,84882.0,84875.0,0.0605]
[1741519675962,0.0651,84881.0,84875.0,0.0605]
[1741519676366,0.14506,84880.0,84876.0,0.0622]
[1741519676863,0.14506,84880.0,84877.0,0.0605]
[1741519677064,0.3608,84886.0,84877.0,0.0605]
[1741519677465,0.08176,84885.0,84877.0,0.0605]
[1741519678269,0.0633,84884.0,84877.0,0.0605]
[1741519679261,0.3608,84886.0,84877.0,0.0605]
[1741519679761,0.08176,84888.0,84877.0,0.0605]
[1741519679964,0.14056,84888.0,84877.0,0.0665]
[1741519680470,0.08176,84888.0,84877.0,0.0665]
[1741519680665,0.08176,84888.0,84879.0,0.21056687]
[1741519680857,0.0588,84894.0,84880.0,0.1851]
[1741519681061,0.0588,84888.0,84880.0,0.26686]
[1741519683072,0.0627,84887.0,84880.0,0.26686]
[1741519683461,0.0638,84886.0,84880.0,0.26686]
[1741519684667,0.0638,84886.0,84880.0,0.1851]
[1741519684864,0.0649,84885.0,84880.0,0.1851]
[1741519685270,0.0649,84885.0,84882.0,0.21056687]
[1741519685271,0.0604,84884.0,84882.0,0.21056687]
[1741519685485,0.0604,84884.0,84883.0,0.1241]
[1741519686080,0.08172,84887.0,84883.0,0.1241]
[1741519686282,0.08172,84894.0,84883.0,0.1241]
[1741519686481,0.08172,84894.0,84886.0,0.3608]
[1741519686684,0.08172,84894.0,84887.0,0.1241]
[1741519687680,0.14402,84894.0,84887.0,0.1241]
[1741519688188,0.14402,84894.0,84887.0,0.13651447]
[1741519688780,0.08172,84894.0,84887.0,0.13651447]
[1741519689490,0.08172,84894.0,84888.0,0.21056687]
[1741519689880,0.08172,84894.0,84888.0,0.33596687]
[1741519690075,0.0604,84895.0,84888.0,0.33596687]
[1741519690286,0.00117679,84889.0,84888.0,0.33596687]
[1741519690483,0.49576336,84928.0,84888.0,0.33596687]
[1741519690484,0.0624,84903.0,84888.0,0.33596687]
[1741519691288,0.0646,84902.0,84888.0,0.33596687]
[1741519691490,0.0646,84902.0,84888.0,0.34096687]
[1741519691694,0.14282,84901.0,84888.0,0.34096687]
[1741519692291,0.0646,84900.0,84888.0,0.34096687]
[1741519692789,0.0611,84899.0,84888.0,0.34096687]
[1741519693287,0.0614,84898.0,84888.0,0.34096687]
[1741519693795,0.1221,84897.0,84888.0,0.34096687]
[1741519694091,0.08172,84896.0,84890.0,0.21056687]
[1741519694293,0.15532825,84896.0,84891.0,0.0609]
[1741519694592,0.06,84895.0,84891.0,0.0609]
[1741519694782,0.06,84895.0,84892.0,0.065]
[1741519694984,0.0614,84894.0,84892.0,0.065]
[1741519695183,0.0614,84894.0,84893.0,0.0609]
[1741519696993,0.1886,84910.0,84893.0,0.0609]
[1741519697295,0.08168,84899.0,84893.0,0.0609]
[1741519697493,0.14148,84899.0,84893.0,0.0609]
[1741519697894,0.0641,84909.0,84893.0,0.0609]
[1741519698099,0.08168,84903.0,84893.0,0.0609]
[1741519698987,0.0598,84899.0,84893.0,0.0609]
[1741519699184,0.0598,84899.0,84893.0,0.0629]
[1741519699391,0.14638,84909.0,84894.0,0.08168]
[1741519699593,0.0647,84909.0,84896.0,0.3608]
[1741519699888,0.0647,84909.0,84897.0,0.1221]
[1741519701090,0.44248,84911.0,84899.0,0.3608]
[1741519701295,0.3608,84911.0,84900.0,0.1221]
[1741519701799,0.0647,84910.0,84901.0,0.0588]
[1741519702197,0.0647,84910.0,84902.0,0.1212]
[1741519703005,0.3608,84911.0,84902.0,0.1212]
[1741519703996,0.00117669,84904.0,84902.0,0.1212]
[1741519704399,0.14025735,84917.0,84902.0,0.2712]
[1741519704699,0.14025735,84917.0,84916.0,0.3608]
[1741519705004,0.14025735,84917.0,84902.0,0.1212]
[1741519705306,0.20618,84916.0,84902.0,0.1212]
[1741519706407,0.20618,84916.0,84901.0,0.2756]
[1741519706408,0.20618,84916.0,84901.0,0.2168]
[1741519706602,0.001,84904.0,84901.0,0.2168]
[1741519706906,0.08164,84903.0,84901.0,0.2168]
[1741519707108,0.20614,84903.0,84901.0,0.2168]
[1741519707307,0.14624,84903.0,84902.0,0.0646]
[1741519707514,0.14624,84903.0,84902.0,0.1905]
[1741519707808,0.0646,84903.0,84902.0,0.1905]
[1741519708309,0.1273,84903.0,84902.0,0.003]
[1741519709206,0.1273,84903.0,84898.0,0.21056687]
[1741519710705,0.1273,84903.0,84894.0,0.21056687]
[1741519710905,0.1273,84903.0,84902.0,0.003]
[1741519711813,0.1273,84903.0,84898.0,0.003]
[1741519713305,0.1273,84903.0,84899.0,0.0607]
[1741519714417,0.08064,84902.0,84899.0,0.0607]
[1741519714807,0.0586,84901.0,84899.0,0.0607]
[1741519715517,0.061,84900.0,84899.0,0.0637]
[1741519716713,0.061,84900.0,84899.0,0.003]
[1741519718113,0.061,84900.0,84892.0,0.00017669]
[1741519718310,0.3608,84893.0,84892.0,0.00017669]
[1741519718519,0.44244,84893.0,84892.0,0.00017669]
[1741519718909,0.44144,84893.0,84882.0,0.21056687]
[1741519719118,0.3608,84883.0,84882.0,0.21056687]
[1741519719313,0.44244,84883.0,84882.0,0.21056687]
[1741519720408,0.60453154,84883.0,84874.0,0.00017669]
[1741519720608,0.3608,84875.0,84874.0,0.00017669]
[1741519720819,0.44244,84875.0,84874.0,0.00017669]
[1741519721919,0.44144,84875.0,84874.0,0.00017669]
[1741519723010,0.44144,84875.0,84874.0,0.00117669]
[1741519726117,0.44144,84875.0,84859.0,0.0612]
[1741519726320,0.3608,84868.0,84859.0,0.0612]
[1741519726517,0.27034,84867.0,84859.0,0.0612]
[1741519728124,0.27034,84867.0,84860.0,0.0593]
[1741519728516,0.27034,84867.0,84861.0,0.0639]
[1741519728718,0.20904,84867.0,84861.0,0.0639]
[1741519728914,0.0644,84867.0,84862.0,0.0636]
[1741519729116,0.08164,84866.0,84862.0,0.0636]
[1741519729321,0.08164,84866.0,84863.0,0.0639]
[1741519729717,0.0597,84865.0,84864.0,0.0647]
[1741519732024,0.0597,84865.0,84864.0,0.0677]
[1741519734925,0.0597,84865.0,84864.0,0.0667]
[1741519736420,0.3608,84867.0,84864.0,0.0667]
[1741519736623,0.0816,84869.0,84865.0,0.0615]
[1741519736927,0.0816,84869.0,84866.0,0.0593]
[1741519737326,0.0816,84869.0,84867.0,0.0615]
[1741519737527,0.0577,84872.0,84867.0,0.0615]
[1741519737719,0.0577,84872.0,84868.0,0.0593]
[1741519738122,0.0577,84872.0,84869.0,0.0615]
[1741519738630,0.0577,84872.0,84870.0,0.1218]
[1741519738819,0.0577,84872.0,84870.0,0.0593]
[1741519739021,0.4212,84871.0,84870.0,0.0593]
[1741519739333,0.4804,84871.0,84870.0,0.0593]
[1741519741833,0.4804,84871.0,84870.0,0.0603]
[1741519743334,0.4804,84871.0,84870.0,0.0593]
[1741519746131,0.1196,84871.0,84870.0,0.0593]
[1741519746335,0.4804,84871.0,84870.0,0.0603]
[1741519749233,0.4804,84871.0,84870.0,0.001]
[1741519753634,0.4804,84871.0,84857.0,0.0621]
[1741519753938,0.061,84870.0,84857.0,0.0621]
[1741519754344,0.0633,84869.0,84857.0,0.0621]
[1741519754638,0.08156,84868.0,84857.0,0.0621]
[1741519754840,0.14166,84868.0,84857.0,0.0621]
[1741519755041,0.0633,84867.0,84857.0,0.0621]
[1741519755442,0.0601,84866.0,84857.0,0.0621]
[1741519755942,0.0633,84865.0,84857.0,0.0621]
[1741519756339,0.0601,84864.0,84857.0,0.0621]
[1741519756546,0.08156,84863.0,84857.0,0.0621]
[1741519756732,0.14486,84863.0,84857.0,0.0621]
[1741519756935,0.0601,84862.0,84857.0,0.0621]
[1741519757344,0.0601,84862.0,84858.0,0.0612]
[1741519757345,0.0577,84861.0,84858.0,0.0612]
[1741519757748,0.0624,84860.0,84859.0,0.0635]
[1741519758146,0.1201,84860.0,84859.0,0.0635]
[1741519761748,0.20166,84860.0,84859.0,0.0665]
[1741519765648,0.20166,84860.0,84859.0,0.0655]
[1741519766947,0.20166,84860.0,84859.0,0.0635]
[1741519768248,0.56246,84860.0,84859.0,0.0635]
[1741519769836,0.50476,84860.0,84859.0,0.0635]
[1741519770153,0.44232,84860.0,84859.0,0.0635]
[1741519771140,0.08152,84860.0,84859.0,0.0635]
[1741519771746,0.0608,84862.0,84859.0,0.0635]
[1741519771946,0.08152,84861.0,84860.0,0.0582]
[1741519773652,0.14402,84861.0,84860.0,0.0582]
[1741519774854,0.08152,84861.0,84860.0,0.0582]
[1741519776154,0.14282,84861.0,84860.0,0.26876687]
[1741519783067,0.14282,84861.0,84860.0,0.0582]
[1741519789460,0.0613,84861.0,84860.0,0.0582]
[1741519791268,0.1206,84861.0,84860.0,0.0582]
[1741519794669,0.1206,84861.0,84860.0,0.1184]
[1741519798380,0.1206,84861.0,84860.0,0.40049237]
[1741519800383,0.1206,84861.0,84860.0,0.34229237]
[1741519800770,0.1206,84861.0,84860.0,0.28209237]
[1741519802076,0.1206,84861.0,84855.0,0.35322179]
[1741519802379,0.3608,84857.0,84855.0,0.35322179]
[1741519802677,0.20324,84856.0,84855.0,0.35322179]
[1741519803177,0.39188,84856.0,84855.0,0.35322179]
[1741519803478,0.77285062,84856.0,84855.0,0.25972179]
[1741519803677,0.77285062,84856.0,84855.0,0.12572143]
[1741519803886,0.77285062,84856.0,84855.0,0.03122143]
[1741519805472,0.77285062,84856.0,84849.0,0.42076719]
[1741519805672,0.3608,84850.0,84849.0,0.42076719]
[1741519805873,0.44224,84850.0,84849.0,0.42076719]
[1741519806075,0.44224,84850.0,84847.0,0.00017669]
[1741519806275,0.0626,84849.0,84847.0,0.00017669]
[1741519806679,0.0581,84848.0,84847.0,0.00017669]
[1741519807182,0.1208,84848.0,84847.0,0.00017669]
[1741519807382,0.3399,84848.0,84847.0,0.00017669]
[1741519808376,1.0615,84848.0,84847.0,0.00017669]
[1741519810183,1.0645,84848.0,84847.0,0.00017669]
[1741519810385,1.1238,84848.0,84847.0,0.00017669]
[1741519810873,1.1248,84848.0,84847.0,0.00017669]
[1741519812388,1.0621,84848.0,84847.0,0.00017669]
[1741519812570,1.14354,84848.0,84847.0,0.00017669]
[1741519812777,1.24826947,84848.0,84847.0,0.00017669]
[1741519813176,1.02916947,84848.0,84847.0,0.00017669]
[1741519813779,1.02516947,84848.0,84847.0,0.00017669]
[1741519813984,1.02916947,84848.0,84847.0,0.00017669]
[1741519814886,0.18916947,84848.0,84847.0,0.00017669]
[1741519816287,0.01312947,84848.0,84847.0,0.01198723]
[1741519816490,0.01312947,84848.0,84847.0,0.00017669]
[1741519816698,0.003,84848.0,84847.0,0.00017669]
[1741519816987,0.003,84848.0,84847.0,0.01233315]
[1741519816988,0.002,84848.0,84847.0,0.01233315]
[1741519817184,0.002,84848.0,84847.0,0.00017669]
[1741519817780,0.1841,84854.0,84847.0,0.00017669]
[1741519818092,0.1841,84854.0,84847.0,0.00117669]
[1741519818489,0.1841,84854.0,84848.0,0.1177]
[1741519818993,0.1214,84854.0,84848.0,0.1177]
[1741519819486,0.1214,84854.0,84849.0,0.0615]
[1741519819982,0.1214,84854.0,84850.0,0.1197]
[1741519820385,0.3608,84851.0,84850.0,0.1197]
[1741519821079,0.3608,84851.0,84847.0,0.00317669]
[1741519821284,0.3608,84851.0,84848.0,0.0608]
[1741519821285,0.2655,84850.0,84848.0,0.0608]
[1741519821590,0.2645,84850.0,84848.0,0.0608]
[1741519822182,0.2645,84850.0,84848.0,0.1222]
[1741519825085,0.2655,84850.0,84848.0,0.1222]
[1741519825486,0.2655,84850.0,84848.0,0.1796]
[1741519826090,0.2645,84850.0,84848.0,0.1796]
[1741519826294,0.3608,84849.0,84848.0,0.1796]
[1741519826789,0.4775,84849.0,84848.0,0.1796]
[1741519828195,0.3608,84849.0,84848.0,0.1796]
[1741519828992,0.0824,84850.0,84848.0,0.1796]
[1741519829695,0.3638,84849.0,84848.0,0.1796]
[1741519831498,0.44516,84849.0,84848.0,0.1796]
[1741519831795,0.44516,84849.0,84848.0,0.1222]
[1741519831997,0.44216,84849.0,84848.0,0.1222]
[1741519832495,0.61666,84849.0,84848.0,0.1222]
[1741519832997,0.61666,84849.0,84848.0,0.0608]
[1741519832998,0.62066,84849.0,84848.0,0.0608]
[1741519833593,0.62066,84849.0,84847.0,0.00017669]
[1741519835895,0.83976,84849.0,84847.0,0.00017669]
[1741519836501,0.84176,84849.0,84847.0,0.00117669]
[1741519836894,0.99176,84849.0,84836.0,0.21206661]
[1741519837099,0.3608,84837.0,84836.0,0.21206661]
[1741519837400,0.44216,84837.0,84836.0,0.21206661]
[1741519837603,0.81126,84837.0,84836.0,0.05338524]
[1741519838103,0.8202634,84837.0,84836.0,0.05338524]
[1741519838796,0.8202634,84837.0,84821.0,0.05338524]
[1741519839002,0.3608,84822.0,84821.0,0.05338524]
[1741519839202,0.63088,84822.0,84821.0,0.05338524]
[1741519839803,0.63088,84822.0,84821.0,0.03738524]
[1741519840503,0.6426203,84822.0,84821.0,0.03738524]
[1741519841701,0.8226203,84822.0,84821.0,0.03738524]
[1741519842800,0.8226203,84822.0,84821.0,0.0170039]
[1741519843605,0.8226203,84822.0,84821.0,1e-08]
[1741519843803,0.9726203,84822.0,84821.0,1e-08]
[1741519844002,0.9726203,84822.0,84807.0,0.0589]
[1741519844304,0.3608,84808.0,84807.0,0.0589]
[1741519844604,0.44216,84808.0,84807.0,0.0589]
[1741519846707,0.44216,84808.0,84788.0,0.29461309]
[1741519846994,0.18,84807.0,84802.0,0.0582]
[1741519847506,0.18,84807.0,84803.0,0.0621]
[1741519847898,0.18,84807.0,84804.0,0.0582]
[1741519848205,0.3608,84805.0,84804.0,0.0582]
[1741519848901,0.44216,84805.0,84804.0,0.0582]
[1741519849602,0.08136,84805.0,84804.0,0.0582]
[1741519849806,0.3608,84812.0,84804.0,0.0582]
[1741519849994,0.08136,84811.0,84805.0,0.01652713]
[1741519850197,0.08136,84811.0,84806.0,0.01652675]
[1741519850500,0.08136,84811.0,84804.0,0.0582]
[1741519850703,0.08136,84811.0,84805.0,0.01653016]
[1741519850897,0.08136,84811.0,84806.0,0.01653016]
[1741519851098,0.1145,84810.0,84804.0,0.0582]
[1741519852803,0.08136,84809.0,84804.0,0.0582]
[1741519853004,0.3608,84812.0,84804.0,0.0582]
[1741519853306,0.08136,84808.0,84804.0,0.0582]
[1741519854102,0.3608,84812.0,84804.0,0.0582]
[1741519854309,0.3608,84812.0,84805.0,0.08136]
[1741519854903,0.3608,84812.0,84806.0,0.01650923]
[1741519855111,0.3608,84812.0,84807.0,0.01650923]
[1741519855304,0.3608,84812.0,84808.0,0.01650923]
[1741519855509,0.55036,84822.0,84809.0,0.07850923]
[1741519855707,0.08136,84821.0,84811.0,0.3608]
[1741519855908,0.08136,84826.0,84820.0,0.3608]
[1741519856103,0.08136,84826.0,84821.0,0.1202]
[1741519856305,0.04971074,84827.0,84821.0,0.1202]
[1741519856605,0.04971074,84827.0,84821.0,0.2702]
[1741519856911,0.04971074,84827.0,84822.0,0.01651759]
[1741519857109,0.04971074,84827.0,84823.0,0.01651759]
[1741519857315,0.04971074,84827.0,84824.0,0.01651759]
[1741519857502,0.04971074,84827.0,84825.0,0.09787759]
[1741519857811,0.04971074,84827.0,84826.0,0.01651759]
[1741519858011,0.04971074,84827.0,84825.0,0.23136]
[1741519858707,0.04971074,84827.0,84825.0,0.08136]
[1741519859105,0.04971074,84827.0,84821.0,0.0582]
[1741519859509,0.04971074,84827.0,84822.0,0.0575]
[1741519860507,0.3608,84823.0,84817.0,0.0001768]
[1741519860713,0.0587,84822.0,84817.0,0.0001768]
[1741519861007,0.08132,84821.0,84817.0,0.0001768]
[1741519861515,0.1133,84820.0,84817.0,0.0001768]
[1741519867416,0.00032326,84819.0,84817.0,0.0001768]
[1741519867921,0.11552326,84819.0,84817.0,0.0001768]
[1741519868315,0.1152,84819.0,84817.0,0.0001768]
[1741519869120,0.08132,84818.0,84817.0,0.0001768]
[1741519869619,0.19652,84818.0,84817.0,0.0001768]
[1741519871524,0.34652,84818.0,84784.0,0.01216638]
[1741519871706,0.34652,84818.0,84792.0,0.0559]
[1741519871707,0.3608,84801.0,84792.0,0.0559]
[1741519871911,0.44212,84801.0,84793.0,0.0563]
[1741519874313,0.45428047,84801.0,84793.0,0.0563]
[1741519874710,0.45428047,84801.0,84800.0,0.11671586]
[1741519875117,0.09348047,84801.0,84800.0,0.1]
[1741519875418,0.45428047,84801.0,84800.0,0.1]
[1741519875724,0.45428047,84801.0,84800.0,0.11671604]
[1741519876221,0.45428047,84801.0,84800.0,0.1]
[1741519876421,0.44212,84801.0,84800.0,0.1]
[1741519876626,0.44212,84801.0,84800.0,0.11670738]
[1741519876819,0.3608,84801.0,84800.0,0.11670738]
[1741519877125,0.45402459,84801.0,84800.0,0.11670738]
[1741519878026,0.45402459,84801.0,84800.0,0.1]
[1741519880123,0.44212,84801.0,84800.0,0.1]
[1741519880627,0.44212,84801.0,84800.0,0.11681804]
[1741519881125,0.44212,84801.0,84800.0,0.1]
[1741519881724,0.49922,84801.0,84800.0,0.1]
[1741519882215,0.49922,84801.0,84800.0,0.11688059]
[1741519882216,0.44212,84801.0,84800.0,0.11688059]
[1741519882416,0.3608,84801.0,84800.0,0.11688059]
[1741519882617,0.44208,84801.0,84800.0,0.11688059]
[1741519882831,0.3608,84801.0,84800.0,0.11688059]
[1741519883034,0.44208,84801.0,84800.0,0.11688059]
[1741519883332,0.08128,84802.0,84800.0,0.47768059]
[1741519883527,0.1888,84817.0,84801.0,0.43338059]
[1741519883731,0.0563,84822.0,84802.0,0.01688059]
[1741519884030,0.08128,84814.0,84803.0,0.01688059]
[1741519884243,0.08128,84814.0,84804.0,0.04440193]
[1741519884432,0.08128,84814.0,84805.0,0.10010193]
[1741519884623,0.08128,84814.0,84806.0,0.04440193]
[1741519884823,0.08128,84814.0,84807.0,0.04440193]
[1741519885123,0.08128,84814.0,84808.0,0.15640193]
[1741519886226,0.08128,84814.0,84808.0,0.12888059]
[1741519886431,0.08128,84814.0,84808.0,0.14367398]
[1741519887029,0.3608,84823.0,84808.0,0.50447398]
[1741519887234,0.17477328,84824.0,84808.0,0.68184615]
[1741519887537,0.17477328,84824.0,84823.0,0.3608]
[1741519887736,0.08447328,84824.0,84823.0,0.42007701]
[1741519887936,0.08128,84830.0,84823.0,0.57007701]
[1741519888142,0.08128,84830.0,84824.0,0.11857701]
[1741519888436,0.08128,84830.0,84825.0,0.04446681]
[1741519888739,0.08128,84830.0,84826.0,0.05927701]
[1741519889238,0.0001768,84833.0,84826.0,0.20927701]
[1741519889424,0.0001768,84833.0,84827.0,0.04446681]
[1741519889631,0.0001768,84833.0,84828.0,0.09950571]
[1741519889834,0.0001768,84833.0,84829.0,0.05971591]
[1741519890136,0.0001768,84833.0,84830.0,0.04490571]
[1741519890330,0.0001768,84833.0,84831.0,0.04490571]
[1741519890530,0.0001768,84833.0,84832.0,0.04490571]
[1741519890730,0.0001768,84833.0,84832.0,0.09950571]
[1741519890931,0.0001768,84833.0,84832.0,0.15640571]
[1741519891530,0.0001768,84833.0,84832.0,0.156185]
[1741519891840,0.0001768,84833.0,84832.0,0.1709952]
[1741519893239,0.0001768,84833.0,84832.0,0.6817952]
[1741519893534,0.0001768,84833.0,84832.0,0.68206615]
[1741519894133,0.0001768,84833.0,84832.0,0.53206615]
[1741519895327,0.0001768,84833.0,84832.0,0.4871102]
[1741519895531,0.0001768,84833.0,84832.0,0.53193907]
[1741519896539,0.114,84835.0,84832.0,0.53193907]
[1741519896737,0.114,84835.0,84833.0,0.04482887]
[1741519896934,0.114,84835.0,84834.0,0.04482887]
[1741519897133,0.0543,84835.0,84834.0,0.05963907]
[1741519897333,0.08124,84836.0,84834.0,0.05963907]
[1741519897528,0.08124,84836.0,84835.0,0.04482887]
[1741519897839,0.08124,84836.0,84835.0,0.17503907]
[1741519899134,0.0001768,84843.0,84835.0,0.17503907]
[1741519899343,0.0001768,84843.0,84842.0,0.3608]
[1741519899546,0.0001768,84843.0,84842.0,0.40593467]
[1741519899842,0.0001768,84843.0,84842.0,0.42074487]
[1741519900235,0.0001768,84843.0,84842.0,0.57093442]
[1741519900430,0.08124,84859.0,84842.0,0.57093442]
[1741519900741,0.08124,84859.0,84855.0,0.3608]
[1741519900939,0.0592,84858.0,84856.0,0.01743239]
[1741519901138,0.1192,84858.0,84857.0,0.01743239]
[1741519901438,0.1192,84858.0,84857.0,0.01735818]
[1741519901645,0.1192,84858.0,84857.0,0.13135818]
[1741519901845,0.1192,84858.0,84857.0,0.01735818]
[1741519902144,0.1192,84858.0,84849.0,0.4154]
[1741519902340,0.1192,84858.0,84850.0,0.07675188]
[1741519902539,0.1192,84858.0,84851.0,0.01735188]
[1741519902736,0.1192,84858.0,84852.0,0.01735188]
[1741519902935,0.06,84858.0,84853.0,0.01735188]
[1741519903131,0.0812,84863.0,84857.0,0.3608]
[1741519903333,0.0812,84863.0,84858.0,0.13196999]
[1741519903545,0.0812,84863.0,84859.0,0.01746999]
[1741519903845,0.0812,84863.0,84860.0,0.01746999]
[1741519904048,0.0812,84863.0,84861.0,0.01746999]
[1741519904241,0.1102,84862.0,84857.0,0.3608]
[1741519904442,0.1102,84862.0,84858.0,0.0452938]
[1741519904640,0.1102,84862.0,84859.0,0.01742069]
[1741519904840,0.1102,84862.0,84860.0,0.01742069]
[1741519905141,0.1102,84862.0,84861.0,0.01742069]
[1741519906042,0.1102,84862.0,84861.0,0.37822069]
[1741519906442,0.1102,84862.0,84861.0,0.40606252]
[1741519907240,0.1102,84862.0,84861.0,0.04526252]
[1741519907553,0.1102,84862.0,84861.0,0.01742069]
[1741519909341,0.1102,84862.0,84861.0,0.04508792]
[1741519909742,0.1102,84862.0,84861.0,0.0600064]
[1741519910444,0.0001768,84866.0,84861.0,0.4208064]
[1741519910638,0.0001768,84866.0,84862.0,0.04508792]
[1741519910842,0.0001768,84866.0,84861.0,0.37571848]
[1741519910843,0.0001768,84866.0,84863.0,0.10458792]
[1741519911149,0.0001768,84866.0,84864.0,0.04508792]
[1741519911337,0.0001768,84866.0,84865.0,0.04508792]
[1741519911751,0.0001768,84866.0,84865.0,0.0600064]
[1741519911941,0.0001768,84866.0,84865.0,0.2100064]
[1741519912945,0.0001768,84866.0,84865.0,0.20967346]
[1741519913449,0.0575,84878.0,84865.0,0.20967346]
[1741519913750,0.0575,84878.0,84872.0,0.3608]
[1741519913953,0.0567,84879.0,84872.0,0.3608]
[1741519913954,0.0567,84879.0,84873.0,0.12591498]
[1741519914153,0.0567,84879.0,84874.0,0.04475498]
[1741519914339,0.0567,84879.0,84875.0,0.04475498]
[1741519914544,0.0567,84879.0,84876.0,0.10015498]
[1741519914748,0.0567,84879.0,84877.0,0.04451767]
[1741519914952,0.0567,84879.0,84878.0,0.12567767]
[1741519915151,0.0567,84879.0,84878.0,0.14059615]
[1741519915547,0.0567,84879.0,84878.0,0.20009615]
[1741519915947,0.0567,84879.0,84878.0,0.21184029]
[1741519916249,0.0567,84879.0,84878.0,0.20009615]